Cogmind - Beta 14 @@@ ROGUE MODE // 2024.12.31 @ 13:39:19 Player: Nueadkie Result: Destroyed by D-53 Grenadier with Mini Grenade Launcher Performance ------------- Evolutions (0) 0 Regions Visited (2) 400 Robots Destroyed (34) 170 Value Destroyed (586) 586 Prototype IDs (2) 40 Alien Tech Used (0) 0 Bonus (-54) -54 TOTAL SCORE: 1142 Bonus ------- Friendly Fire -54 Cogmind --------- Core Integrity 0/250 Matter 300/300 Energy 100/100 System Corruption 2% Temperature Cool (0) Movement Treading (160) Location -10/Mines Parts ------- > --- POWER (1) -------- (None) > --- PROPULSION (2) --- Light Treads > --- UTILITY (2) ------ Signal Interpreter Improved Targeting Computer > --- WEAPON (2) ------- Improved Light Cannon Improved Light Cannon > --- INVENTORY (5) ---- Sensor Array Improved Terrain Scanner Terrain Scan Processor Improved Light Cannon Improved Light Cannon Peak State ------------ > --- POWER ------------ Light Nuclear Core > --- PROPULSION ------- Light Treads Light Treads > --- UTILITY ---------- Small Storage Unit Improved Targeting Computer > --- WEAPON ----------- Improved Light Cannon Improved Light Cannon > --- INVENTORY -------- Light Treads Aluminum Leg Aluminum Leg Medium Matter Pod Sensor Array Improved Terrain Scanner Terrain Scan Processor Light Assault Rifle [Rating: 13] Favorites ----------- Power Light Nuclear Core Engine Light Ion Engine Power Core Light Nuclear Core Propulsion Light Treads Treads Light Treads Leg Aluminum Leg Flight Unit Flight Unit Utility Small Storage Unit Device Improved Terrain Scanner Storage Small Storage Unit Processor Improved Targeting Computer Weapon Medium Laser Energy Gun Medium Laser Ballistic Gun Assault Rifle Ballistic Cannon Improved Light Cannon Build | -11 -10 -10 ------- Run | Yrd Mat Min Slots Evolved . | . . . Power . | . . . Propulsion . | . . . Utility . | . . . Weapon . | . . . Parts Attached 28 | 7 21 . Power 3 | 1 2 . Engine 2 | 1 1 . Core 1 | . 1 . Reactor . | . . . Propulsion 9 | 2 7 . Treads 4 | . 4 . Leg 4 | 2 2 . Wheel . | . . . Hover . | . . . Flight 1 | . 1 . Utility 6 | 1 5 . Device 1 | . 1 . Storage 1 | 1 . . Processor 4 | . 4 . Hackware . | . . . Protection . | . . . Artifact . | . . . Weapon 10 | 3 7 . Energy Gun 6 | 1 5 . Energy Cannon . | . . . Ballistic Gun 2 | 2 . . Ballistic Cannon 2 | . 2 . Launcher . | . . . Special Weapon . | . . . Impact Weapon . | . . . Slashing Weapon . | . . . Piercing Weapon . | . . . Special Melee Weapon . | . . . Unidentified Prototypes . | . . . Parts Lost 9 | . 7 2 Power 1 | . . 1 Propulsion 4 | . 3 1 Utility 1 | . 1 . Weapon 3 | . 3 . Highest Loss Streak 6 | . 6 2 To Critical Strikes . | . . . Average Slot Usage (%) 95 | . 94 100 Engine 3 | . 3 . Core 10 | . 10 14 Treads 19 | . 18 28 Leg 6 | . 7 . Device 2 | . 3 . Storage 11 | . 12 . Processor 13 | . 11 28 Energy Gun 14 | . 16 . Ballistic Gun 2 | . 2 . Ballistic Cannon 7 | . 6 28 Peak Build Rating 13 | 6 13 13 Average Rating 9 | 5 9 12 On Entrance 6 | . 6 13 Naked Turns . | . . . Heaviest Build 18 | 12 18 13 Greatest Support 40 | 20 40 40 Greatest Overweight (x) 3 | . 3 . Average Overweight (x) . | . . . Largest Inventory Capacity 8 | 8 8 5 Average Capacity 7 | 7 7 5 Most Carried 8 | 4 8 5 Average Carried 5 | 1 6 5 Final Capacity 8 | 8 5 5 Final Carried 5 | 4 5 5 Class Distribution -------------------- 96% | Mutant 3% | Scavenger-Mutant Dominant Class ---------------- Mutant | -10/Materials Mutant | -10/Mines Resources | -11 -10 -10 ----------- Run | Yrd Mat Min Matter Collected 856 | 253 579 24 Remotely . | . . . Salvage Created 1007 | 44 873 90 Parts 65 | 6 58 1 Haulers Intercepted 2 | . 2 . Recyclers Shooed . | . . . Parts Field Recycled . | . . . Retrieved Matter . | . . . Parts Self-Destructed . | . . . Prevented . | . . . Kills | -11 -10 -10 ------- Run | Yrd Mat Min Combat Hostiles Destroyed 20 | . 19 1 Guns 15 | . 15 . Cannons 4 | . 3 1 Classes Destroyed 9 | 1 8 . Worker 1 | . 1 . Builder 3 | . 3 . Tunneler 2 | 2 . . Hauler 2 | . 2 . Recycler 2 | . 1 1 Operator 1 | . 1 . Watcher 3 | . 3 . Swarmer 10 | . 9 1 Grunt 10 | . 10 . Best Kill Streak 4 | 2 4 2 Combat Bots Only 3 | . 3 1 Max Kills in Single Turn 2 | 1 1 2 Gunslinging . | . . . Exploded . | . . . Melee . | . . . Uniques/NPCs Destroyed . | . . . Combat | -11 -10 -10 -------- Run | Yrd Mat Min Hostile Shots Fired 131 | . 118 13 Missed 27 | . 26 1 Damage Taken 1341 | . 1064 277 Core 256 | . 225 31 Absorbed by Shields . | . . . Core Remaining (%) 100 | 100 . . Volleys Fired 104 | 2 99 3 Largest 2 | 2 2 2 Hottest 100 | 70 100 78 Shots Fired 193 | 4 183 6 Gun 160 | 4 156 . Cannon 33 | . 27 6 Launcher . | . . . Special . | . . . Kinetic 75 | 2 67 6 Thermal 95 | 2 93 . Explosive . | . . . Electromagnetic 23 | . 23 . Robot Hit Streak 18 | 2 18 2 Robot Miss Streak 3 | . 3 1 Penetration Max . | . . . Secondary Targets . | . . . Shots Hit Robots 121 | 2 116 3 Core Hits 48 | 2 45 1 Critical Kills . | . . . Critical Parts Destroyed 1 | . 1 . Critical Strikes 8 | . 8 . Burn 6 | . 6 . Destroy 1 | . 1 . Corrupt 1 | . 1 . Melee Attacks . | . . . Impact . | . . . Slashing . | . . . Piercing . | . . . Sneak Attacks . | . . . Combat Hostiles . | . . . Follow-up Attacks . | . . . Damage Inflicted 1798 | 25 1666 107 Guns 1356 | 25 1331 . Cannons 363 | . 256 107 Explosions 74 | . 74 . Melee . | . . . Ramming 5 | . 5 . Kinetic 708 | . 601 107 Thermal 857 | 25 832 . Explosive . | . . . Electromagnetic 228 | . 228 . Impact . | . . . Slashing . | . . . Piercing . | . . . Highest Corruption 2 | . 2 2 Average Corruption 2 | . 2 2 Corruption Purged . | . . . Corruption Blocked . | . . . Effects 21 | . 20 1 Message Errors 4 | . 4 . Matter Fused 7 | . 7 . Heat Flow Errors 1 | . . 1 Energy Discharges 3 | . 3 . Data Loss (minor) 3 | . 3 . Misfires 2 | . 2 . Weapon Failures 1 | . 1 . Overload Shots . | . . . Overflow Damage 11 | . 2 9 Projectiles 11 | . 2 9 Explosions . | . . . Melee . | . . . Knockbacks 7 | . 5 2 Impact . | . . . Kinetic 6 | . 4 2 Secondary 1 | . 1 . Self-Inflicted Damage 20 | . 20 . Shots 1 | . 1 . Rammed . | . . . Targets Rammed 1 | . 1 . Kicked 1 | . 1 . Crushed . | . . . Highest Temperature 357 | 9 357 110 Average Temperature 66 | 6 68 45 Received Heat Transfer 300 | . 300 . Effects 3 | . 3 . Shutdowns 1 | . 1 . Matter Decay 2 | . 2 . Siege Activations . | . . . Robots Corrupted 1 | . 1 . Combat Hostiles 1 | . 1 . Parts Fried 2 | . 2 . Impact Corruptions . | . . . Robots Melted . | . . . Combat Hostiles . | . . . Parts Melted 6 | . 6 . Heat Transferred 2738 | 74 2664 . Parts Sabotaged . | . . . Parts Stolen . | . . . Parts Stripped . | . . . Power Chain Reactions 2 | . 2 . Alert | -11 -10 -10 ------- Run | Yrd Mat Min Peak Influence 289 | 10 289 87 Initial 52 | . 6 52 Average 111 | 1 118 76 Maximum Alert Level 1 | . 1 . Low Security (%) 90 | 100 88 100 Level 1 9 | . 11 . Level 2 . | . . . Level 3 . | . . . Level 4 . | . . . Level 5 . | . . . High Security . | . . . Max Security . | . . . Squads Dispatched 3 | . 3 . Investigation 1 | . 1 . Extermination . | . . . Reinforcement 2 | . 2 . Assault . | . . . Garrison . | . . . Intercept . | . . . Searches Triggered . | . . . Construction Impeded . | . . . Haulers Reinforced . | . . . Active Scanning Responses . | . . . Cargo Convoy Interrupts . | . . . Stealth | -11 -10 -10 --------- Run | Yrd Mat Min Distress Signals 2 | . 2 . Communications Jammed . | . . . Distress Signals . | . . . Times Spotted 40 | . 35 5 Peak Tracking Total 4 | . 4 3 Tactical Retreats 4 | . 4 . Traps | -11 -10 -10 ------- Run | Yrd Mat Min Traps Triggered 2 | . 2 . Indirectly . | . . . Trap Hack Attempts . | . . . Triggered . | . . . Disarmed . | . . . Reprogrammed . | . . . Reused . | . . . Traps Extracted . | . . . Installed . | . . . Triggered . | . . . Machines | -11 -10 -10 ---------- Run | Yrd Mat Min Machines Disabled 1 | . 1 . Max in Single Turn 1 | . 1 . Machines Repaired . | . . . Machines Dismantled . | . . . Machines Sabotaged . | . . . Overloaded Fab Kills . | . . . Hacking | -11 -10 -10 --------- Run | Yrd Mat Min Machines Accessed 7 | . 7 . Terminals 4 | . 4 . Fabricators . | . . . Repair Stations 1 | . 1 . Recycling Units 2 | . 2 . Scanalyzers . | . . . Garrison Access . | . . . Total Hacks 17 | . 17 . Successful 8 | . 8 . Failed 9 | . 9 . Catastrophic 2 | . 2 . Database Lockouts . | . . . Manual . | . . . Terminals 9 | . 9 . Fabricators . | . . . Repair Stations 1 | . 1 . Recycling Units 7 | . 7 . Scanalyzers . | . . . Garrison Access . | . . . Terminal Hacks 1 | . 1 . Prototype ID Bank 1 | . 1 . Fabricator Hacks . | . . . Repair Station Hacks 1 | . 1 . Scan Component 1 | . 1 . Recycling Unit Hacks 6 | . 6 . Process 1 | . 1 . Report Inventory 3 | . 3 . Retrieve Matter 1 | . 1 . Retrieve Components 1 | . 1 . Scanalyzer . | . . . Garrison Access Hacks . | . . . Unauthorized Hacks . | . . . Terminals . | . . . Fabricators . | . . . Repair Stations . | . . . Recycling Units . | . . . Scanalyzers . | . . . Garrison Access . | . . . Data Cores Recovered . | . . . Used . | . . . Hacking Detections 6 | . 6 . Full Trace Events 3 | . 3 . Feedback Events . | . . . Feedback Blocked . | . . . Robot Schematics Acquired . | . . . Robots Built . | . . . Authchips . | . . . Time . | . . . Total Robot Build Rating . | . . . Part Schematics Acquired . | . . . Parts Built . | . . . Authchips . | . . . Time . | . . . Total Part Build Rating . | . . . Parts Repaired . | . . . Time . | . . . Parts Recycled . | . . . Recycled Matter 76 | . 76 . Retrieved Matter 175 | . 175 . Retrieved Components 10 | . 10 . Parts Scanalyzed . | . . . Part Schematics Acquired . | . . . Parts Damaged . | . . . Bothacking | -11 -10 -10 ------------ Run | Yrd Mat Min Used RIF Installer . | . . . Robots Hacked . | . . . Non-combat . | . . . Combat . | . . . Robot Hacks Applied . | . . . Relay Couplers Released . | . . . Fabnet Peak Effective % . | . . . Robots Rewired . | . . . Allies Hacked . | . . . Hacks Repelled . | . . . Allies | -11 -10 -10 -------- Run | Yrd Mat Min Total Allies . | . . . Largest Group . | . . . Highest-Rated Group . | . . . Highest-Rated Ally . | . . . Total Orders . | . . . Ally Attacks . | . . . Total Damage . | . . . Kills . | . . . Allies Corrupted . | . . . Allies Melted . | . . . Intel | -11 -10 -10 ------- Run | Yrd Mat Min Robot Analysis Total . | . . . Derelict Logs Recovered 1 | . . 1 Drone Launches . | . . . Drone Recoveries . | . . . Exploration | -11 -10 -10 ------------- Run | Yrd Mat Min Turns Passed 2486 | 84 2211 191 Spaces Moved 1257 | 56 1096 105 Core 19 | 4 15 . Treads 931 | . 826 105 Legs 287 | 52 235 . Wheels . | . . . Hover . | . . . Flight 20 | . 20 . Fastest Speed 50 | 50 120 160 Average Speed 152 | 115 154 160 Slowest Speed 200 | 120 200 160 Overloaded Moves . | . . . Propulsion Burnouts . | . . . Robots Hopped . | . . . Cave-ins Triggered . | . . . Exploration Rate (%) 42 | 4 96 27 Regions Visited 2 Branch Regions 1 Pre-discovered Areas 1 | . . 1 Known Exits Taken 1 | . 1 . Unknown Exits Taken 1 | 1 . . Scrap Searched . | . . . Spaces Dug . | . . . Terrain Destroyed 5 | . 5 . Melee . | . . . Projectile . | . . . AOE 5 | . 5 . Terrain Rammed . | . . . Walls Destroyed . | . . . Machines Disabled . | . . . Actions | -11 -10 -10 --------- Run | Yrd Mat Min Total 1621 | 68 1431 122 Wait 209 | . 195 14 Move 1255 | 55 1095 105 Hop . | . . . Pick Up 14 | 4 10 . Fast Attach 13 | 6 7 . Attach 4 | . 4 . Detach . | . . . Swap 11 | 1 10 . Drop 10 | . 10 . Fire 104 | 2 99 3 Melee . | . . . Ram . | . . . Kick 1 | . 1 . Crush . | . . . Escape Stasis . | . . . Rewire . | . . . Trap . | . . . Miscellaneous . | . . . Route ------- -11/Scrapyard -10/Materials (discovered 3 exits: *Mat x2 / *Min) -10/Mines (discovered 1 exit: *Mat) History --------- Turn | Location | Event 15 | -11/Scrapyard | Discovered new exit (range 15) 85 | -11/Scrapyard | Entered Materials 315 | -10/Materials | Build established: Mutant 632 | -10/Materials | Lost 6 parts (3n1u2w) 920 | -10/Materials | Discovered new exit (range 13) 1184 | -10/Materials | Core integrity fell below 50% 1214 | -10/Materials | Discovered new exit (range 16) 1503 | -10/Materials | Discovered new exit (range 14) 1877 | -10/Materials | Core integrity fell below 20% 2082 | -10/Materials | Identified exit to Materials 2294 | -10/Materials | Identified exit to Mines 2296 | -10/Materials | Entered Mines 2297 | -10/Mines | YI-UF0 nonchalantly dropped a Grenade Launcher on the ground 2369 | -10/Mines | Discovered exit to Materials (range 9) 2433 | -10/Mines | Learned location of Zion (-6) 2464 | -10/Mines | Assembled infested the area 2469 | -10/Mines | Assisted by a Guerilla fighting off Assembled 2487 | -10/Mines | Destroyed by D-53 Grenadier with Mini Grenade Launcher Last Messages --------------- 02362_ K-01 Serf collects debris. 02363_ Acquired 24 matter. 02366_ YI-UF0 mumbles something. 02367_ R-06 Scavenger collects Lgt. Assault Rifle. 02367_ K-01 Serf collects debris. 02369_ EXIT=FOUND: MATERIALS 02369_ R-06 Scavenger collects Com. Wheel. 02371_ K-01 Serf collects debris. 02387_ YI-UF0 mumbles something. 02392_ The unstable cave ceiling collapses. 02392_ 1 Matter crushed. 02433_ Acquired derelict log, extracted data. World map updated: -6/Zion. 02464_ ALERT: Infestation in the mines, dispatching Demolisher response squad. 02469_ A derelict emerges from the shadows: "You need to get out of here! I've been tracking a group of Assembled to figure out where they're coming from, and they're closing on this area, come on!" 02483_ C-30 ARC bursts open, deploying its payload. 02483_ D-53 Grenadier unfolds itself. 02483_ Lgt. Nuclear Core destroyed. 02485_ Lgt. Treads destroyed. Map ----- +----------------------------------------------------+ | ?????????????????????????????????????? | | ?????????????????????????????????????? | | ?????????????????????????????????????? | | ?????????????????????????????????????? | | ?????????????????????????????????????? | | ?????????????????????????????????????? | | ?????????????????????????????????????? | | ?????????????????????????????????????? | | ?????????????????????????????????????? | | ??????? ?????????????????????????????? | | ??????# ????????????????????????????? | | ??????# ????????????????????????????? | | ???#??#$ ????????????????????????????? | | ???# ?# ##??###?????????????????????? | | ???# ## ??# ?????????????????????? | | ??## r ??# #?????????????????????? | | ??# ??# #?????????????????????? | | ??# ??# #?????????????????????? | | ??# #??# #?????????????????????? | | ?## ### #?????????????????????? | | ?# """ ##????????????????????? | | ?# """ #????????????????????? | | ?# """r ##???????????????????? | | ??# #???????????????????? | | ??# #????????????????????? | | ??# @ #####?????????????????? | | ??# d #?????????????????? | | ?## % ## #?????????????????? | | ?# d # ## ### ##### #????? | | ?# #???? | | ?##### ???? | | ?????# ####### ## ""?????? | | ?????# ###?????# ##????? ""?????? | | ?????# #???????## ##??????????????? | | ?????# ######???# #???????????????? | | ?????# #???# #???????????????? | | ?????# #??? #???????????????? | | ?????###### #??? ##???????????????? | | ??????????# #???# ##????????????????? | | ??????????# #????##?????????????????? | | ??????????# #???????????????????????? | | ??????????# #???????????????????????? | | ??????????# ##??????????????????????? | | ???????#### ##????####?????????????? | | ?????### ##??## ###???????????? | | ??#### ##?# ????????????? | | ?## #?# ?????????????? | | ?# #?# #????#????????? | | ?# < #?# #??? #????????? | | ?## ### ##?# ##???????? | +----------------------------------------------------+ Best States ------------- Heat Dissipation 25 Energy Generation 14 Energy Capacity 160 Matter Stores 300 Matter Capacity 300 Sight Range 16 Terrain Scan Range 16 Terrain Scan Density 10 Evasion (%) 55 Targeting Accuracy 6 Recoil Reduction 2 Item Schematics ----------------- None Robot Schematics ------------------ None Fabricated ------------ Nothing Alien Tech Used ----------------- None Achievements -------------- None Challenges ------------ None Game ------ Seed HardenedCatalystDrivehammer Manual? 0 Play Time 00:25:38 Cumulative 9.8 hours Start 2024.12.31 @ 12:12:31 End 2024.12.31 @ 13:39:19 Sessions 1 Manual Loads 0 Difficulty Rogue Special Mode None Game No. 11 Rogue 11 Adventurer 0 Explorer 0 Win Type - Total 0 Types 0/0/0/0/0/0/0/0/0 Lore% 11 Gallery% 14 Achievement% 13 Wizard Run 0 Options --------- Layout 0 ASCII 0 Keyboard 0 Movement Numpad Keybinds 0 Fullscreen 1 Font 18/SmallcapsGlow Map View 112x50 Zoom Use 0% Tactical HUD 1 Map Filters NONE Filters NONE Steam 1 RUN: 4620689c-c8f1-4e59-9fd8-9af0a8c40486